[Event "SixDays Budapest GM-A 09-2024"]
[Site "Budapest"]
[Date "2024.09.28"]
[Round "7.1"]
[White "Chen, Yining"]
[Black "Plat, Vojtech"]
[Result "1/2-1/2"]
[ECO "A41"]
[WhiteElo "2252"]
[BlackElo "2483"]
[Annotator "RC"]
[PlyCount "80"]
[EventDate "2024.09.24"]
[EventType "tourn"]
[EventCountry "HUN"]
[SourceTitle "playchess.com"]
[Source "ChessBase"]
[SourceQuality "1"]
[TimeControl "5400+30"]

1. d4 {[%emt 0:01:25]} d6 {[%emt 0:00:32]} 2. Nf3 {[%emt 0:00:05]} Nf6 {[%emt 0:00:16]} 3. c4 {[%emt 0:00:13]} Bf5 {[%emt 0:00:05]} 4. Nc3 {[%emt 0:00:46]} g6 {[%emt 0:00:07]} 5. Qb3 {[%emt 0:02:15]} Qc8 {[%emt 0:00:13]} 6. h3 {[%emt 0:01:48]} Bg7 {[%emt 0:00:31]} 7. g4 {[%emt 0:07:28]} Bd7 {[%emt 0:00:31]} 8. Bg2 {[%emt 0:00:06]} Nc6 {[%emt 0:00:25]} 9. Qc2 {[%emt 0:05:05]} O-O {[%emt 0:04:17]} 10. e4 {[%emt 0:00:54]} e5 {[%emt 0:05:21]} 11. d5 {[%emt 0:08:09]} Nd4 {[%emt 0:00:55]} 12. Nxd4 {[%emt 0:01:11]} exd4 {[%emt 0:00:03]} 13. Ne2 {[%emt 0:00:20]} Re8 {[%emt 0:02:09]} 14. Bf4 {[%emt 0:06:34]} b5 {[%emt 0:00:32]} 15. c5 {[%emt 0:07:41]} dxc5 {[%emt 0:02:50]} 16. e5 {[%emt 0:06:26]} c4 {[%emt 0:01:05]} 17. Nxd4 {[%emt 0:00:23]} Qb7 {[%emt 0:03:29]} 18. O-O-O {[%emt 0:05:41]} Nxd5 {[%emt 0:00:04]} 19. Nxb5 {[%emt 0:04:46]} Bxb5 {[%emt 0:05:03]} 20. Bxd5 {[%emt 0:00:52]} c6 {[%emt 0:00:29]} 21. Bxc4 {[%emt 0:00:44]} a5 {[%emt 0:01:18]} 22. Rhe1 {[%emt 0:02:45]} a4 {[%emt 0:00:21]} 23. a3 {[%emt 0:02:20]} Bxc4 {[%emt 0:00:56]} 24. Qxc4 {[%emt 0:00:03]} Ra5 {[%emt 0:00:30]} 25. Re2 {[%emt 0:02:11]} Bf8 {[%emt 0:04:51]} 26. Rc2 {[%emt 0:02:15]} Rc5 {[%emt 0:00:10]} 27. Qxa4 {[%emt 0:02:58]} Rb5 {[%emt 0:00:08]} 28. Rd3 {[%emt 0:01:48]} Bb4 {[%emt 0:06:42]} 29. axb4 {[%emt 0:02:04]} Rxb4 {[%emt 0:01:41]} 30. Qxc6 {[%emt 0:00:17]} Qxc6 {[%emt 0:00:03]} 31. Rxc6 {[%emt 0:00:02]} Rxf4 {[%emt 0:00:04]} 32. Rf6 {[%emt 0:01:41]} Rc4+ {[%emt 0:00:03]} 33. Kd2 {[%emt 0:03:11]} Rxe5 {[%emt 0:05:39]} 34. Rd7 {[%emt 0:00:32]} Rb4 {[%emt 0:00:25]} 35. Kc3 {[%emt 0:04:01]} Reb5 {[%emt 0:00:08]} 36. Rfxf7 {[%emt 0:00:40]} Rb3+ {[%emt 0:00:11]} 37. Kd4 {[%emt 0:01:47]} R5b4+ {[%emt 0:00:35]} 38. Ke5 {[%emt 0:00:38]} Rb5+ {[%emt 0:00:04]} 39. Ke6 {[%emt 0:01:03]} Rb6+ {[%emt 0:00:03]} 40. Ke5 {[%emt 0:01:51]} R6b5+ {[%emt 0:00:02]} 1/2-1/2

[Event "SixDays Budapest GM-A 09-2024"]
[Site "Budapest"]
[Date "2024.09.28"]
[Round "7.2"]
[White "Panda Sambit"]
[Black "Mamatov, Melis"]
[Result "0-1"]
[ECO "D11"]
[WhiteElo "2367"]
[BlackElo "2362"]
[Annotator "ChessBase"]
[PlyCount "112"]
[EventDate "2024.09.24"]
[EventType "tourn"]
[EventCountry "HUN"]
[SourceTitle "playchess.com"]
[Source "ChessBase"]
[SourceQuality "1"]
[TimeControl "5400+30"]

1. d4 {[%emt 0:08:24]} d5 {[%emt 0:00:07]} 2. c4 {[%emt 0:00:04]} c6 {[%emt 0:00:05]} 3. Nf3 {[%emt 0:00:09]} Nf6 {[%emt 0:00:07]} 4. e3 {[%emt 0:00:10]} Bg4 {[%emt 0:00:09]} 5. Qb3 {[%emt 0:00:18]} Qb6 {[%emt 0:01:58]} 6. Nh4 {[%emt 0:00:05]} g6 {[%emt 0:04:39]} 7. Nc3 {[%emt 0:01:02]} Bg7 {[%emt 0:03:44]} 8. h3 {[%emt 0:08:56]} Be6 {[%emt 0:04:44]} 9. Bd2 {[%emt 0:06:48]} O-O {[%emt 0:05:09]} 10. Nf3 {[%emt 0:05:20]} Nbd7 {[%emt 0:17:11]} 11. Be2 {[%emt 0:04:20]} dxc4 {[%emt 0:05:34]} 12. Bxc4 {[%emt 0:00:06]} Bxc4 {[%emt 0:00:06]} 13. Qxc4 {[%emt 0:00:04]} c5 {[%emt 0:10:00]} 14. d5 {[%emt 0:04:28]} Qxb2 {[%emt 0:02:03]} 15. Rb1 {[%emt 0:01:30]} Qc2 {[%emt 0:06:13]} 16. Rc1 {[%emt 0:00:58]} Qf5 {[%emt 0:03:30]} 17. e4 {[%emt 0:04:19]} Ne5 {[%emt 0:01:47]} 18. Nxe5 {[%emt 0:00:05]} Qxe5 {[%emt 0:00:03]} 19. O-O {[%emt 0:00:08]} b6 {[%emt 0:01:47]} 20. Be3 {[%emt 0:01:12]} g5 {[%emt 0:03:31]} 21. f4 {[%emt 0:20:28]} gxf4 {[%emt 0:00:14]} 22. Rxf4 {[%emt 0:00:04]} Bh6 {[%emt 0:01:21]} 23. Rcf1 {[%emt 0:00:23]} Kh8 {[%emt 0:04:24]} 24. R4f3 {[%emt 0:03:08]} Bxe3+ {[%emt 0:00:20]} 25. Rxe3 {[%emt 0:00:01]} Rg8 {[%emt 0:01:09]} 26. Ne2 {[%emt 0:08:17]} Rg5 {[%emt 0:01:16]} 27. Nf4 {[%emt 0:03:13]} Rag8 {[%emt 0:03:43]} 28. Rf2 {[%emt 0:00:48]} Rg3 {[%emt 0:03:43]} 29. Rxg3 {[%emt 0:05:39]} Rxg3 {[%emt 0:00:03]} 30. d6 {[%emt 0:00:06]} e6 {[%emt 0:02:34]} 31. Ne2 {[%emt 0:08:37]} Rg8 {[%emt 0:05:28]} 32. Qd3 {[%emt 0:00:53]} Rd8 {[%emt 0:00:49]} 33. Ng3 {[%emt 0:00:41]} Rxd6 {[%emt 0:04:07]} 34. Qf3 {[%emt 0:00:02]} Ng8 {[%emt 0:00:37]} 35. Qg4 {[%emt 0:03:09]} Rd7 {[%emt 0:01:45]} 36. Nh5 {[%emt 0:03:21]} f6 {[%emt 0:00:00]} 37. h4 {[%emt 0:00:55]} c4 {[%emt 0:00:19]} 38. g3 {[%emt 0:00:43]} c3 {[%emt 0:00:43]} 39. Kg2 {[%emt 0:00:22]} Nh6 {[%emt 0:01:10]} 40. Qf3 {[%emt 0:00:09]} Rd2 {[%emt 0:01:02]} 41. Nxf6 {[%emt 0:00:48]} Rxf2+ {[%emt 0:00:29]} 42. Qxf2 {[%emt 0:00:07]} c2 {[%emt 0:00:29]} 43. Qxc2 {[%emt 0:00:47]} Qxf6 {[%emt 0:00:08]} 44. Qc8+ {[%emt 0:00:06]} Kg7 {[%emt 0:01:00]} 45. Qc7+ {[%emt 0:00:15]} Nf7 {[%emt 0:00:54]} 46. Qxa7 {[%emt 0:00:12]} Qb2+ {[%emt 0:00:11]} 47. Kg1 {[%emt 0:01:24]} Qd4+ {[%emt 0:00:14]} 48. Kh2 {[%emt 0:00:26]} Qf2+ {[%emt 0:00:26]} 49. Kh3 {[%emt 0:00:04]} h5 {[%emt 0:00:53]} 50. e5 {[%emt 0:00:17]} Kg6 {[%emt 0:01:26]} 51. Qc7 {[%emt 0:01:23]} Qf1+ {[%emt 0:00:10]} 52. Kh2 {[%emt 0:00:07]} Qe2+ {[%emt 0:00:01]} 53. Kh3 {[%emt 0:00:23]} Nxe5 {[%emt 0:00:09]} 54. Qc1 {[%emt 0:00:06]} Nf3 {[%emt 0:00:57]} 55. Qb1+ {[%emt 0:00:12]} Kg7 {[%emt 0:00:14]} 56. Qa1+ {[%emt 0:00:28]} e5 {[%emt 0:00:17]} 0-1

[Event "SixDays Budapest GM-A 09-2024"]
[Site "Budapest"]
[Date "2024.09.28"]
[Round "7.3"]
[White "Defromont, Benjamin"]
[Black "Mohammad Fahad, Rahman"]
[Result "1-0"]
[ECO "B31"]
[WhiteElo "2383"]
[BlackElo "2419"]
[Annotator "ChessBase"]
[PlyCount "57"]
[EventDate "2024.09.24"]
[EventType "tourn"]
[EventCountry "HUN"]
[SourceTitle "playchess.com"]
[Source "ChessBase"]
[SourceQuality "1"]
[TimeControl "5400+30"]

1. e4 {[%emt 0:08:13]} c5 {[%emt 0:00:27]} 2. Nf3 {[%emt 0:00:07]} Nc6 {[%emt 0:00:15]} 3. Bb5 {[%emt 0:00:09]} g6 {[%emt 0:01:35]} 4. O-O {[%emt 0:01:22]} Bg7 {[%emt 0:00:52]} 5. Re1 {[%emt 0:00:07]} Nf6 {[%emt 0:00:57]} 6. Nc3 {[%emt 0:02:13]} O-O {[%emt 0:00:49]} 7. e5 {[%emt 0:01:02]} Ne8 {[%emt 0:00:08]} 8. d3 {[%emt 0:00:47]} Nd4 {[%emt 0:01:50]} 9. h3 {[%emt 0:05:46]} Nc7 {[%emt 0:07:17]} 10. a4 {[%emt 0:00:52]} d5 {[%emt 0:08:41]} 11. exd6 {[%emt 0:00:53]} exd6 {[%emt 0:00:09]} 12. Bc4 {[%emt 0:02:18]} Be6 {[%emt 0:02:47]} 13. Nxd4 {[%emt 0:10:37]} Bxd4 {[%emt 0:02:49]} 14. Qf3 {[%emt 0:00:16]} b6 {[%emt 0:22:23]} 15. Bf4 {[%emt 0:03:43]} Qd7 {[%emt 0:00:40]} 16. Qg3 {[%emt 0:12:36]} d5 {[%emt 0:02:39]} 17. Bxc7 {[%emt 0:07:06]} dxc4 {[%emt 0:01:43]} 18. dxc4 {[%emt 0:00:05]} Bxc3 {[%emt 0:06:12]} 19. bxc3 {[%emt 0:00:08]} Bxc4 {[%emt 0:00:10]} 20. a5 {[%emt 0:02:54]} bxa5 {[%emt 0:03:33]} 21. Rxa5 {[%emt 0:04:46]} Qd2 {[%emt 0:02:27]} 22. Re7 {[%emt 0:01:56]} Qd5 {[%emt 0:12:24]} 23. Be5 {[%emt 0:02:19]} Rfe8 {[%emt 0:03:11]} 24. Raxa7 {[%emt 0:00:51]} Rxe7 {[%emt 0:00:31]} 25. Rxe7 {[%emt 0:00:04]} Qe4 {[%emt 0:01:25]} 26. Qg5 {[%emt 0:03:32]} Bf1 {[%emt 0:07:45]} 27. Bf6 {[%emt 0:06:06]} Qc6 {[%emt 0:00:09]} 28. Kxf1 {[%emt 0:01:23]} h6 {[%emt 0:00:46]} 29. Qe5 {[%emt 0:00:38]} 1-0

[Event "SixDays Budapest GM-A 09-2024"]
[Site "Budapest"]
[Date "2024.09.28"]
[Round "7.4"]
[White "Lee, Junhyeok"]
[Black "Nagy, Gabor"]
[Result "1/2-1/2"]
[ECO "C41"]
[WhiteElo "2364"]
[BlackElo "2459"]
[Annotator "RC"]
[PlyCount "72"]
[EventDate "2024.09.24"]
[EventType "tourn"]
[EventCountry "HUN"]
[SourceTitle "playchess.com"]
[Source "ChessBase"]
[SourceQuality "1"]
[TimeControl "5400+30"]

1. e4 {[%emt 0:00:17]} e5 {[%emt 0:01:26]} 2. Nf3 {[%emt 0:00:10]} d6 {[%emt 0:00:29]} 3. d4 {[%emt 0:01:15]} exd4 {[%emt 0:00:20]} 4. Nxd4 {[%emt 0:00:35]} Nf6 {[%emt 0:00:16]} 5. Nc3 {[%emt 0:00:04]} Be7 {[%emt 0:00:09]} 6. Bf4 {[%emt 0:00:50]} O-O {[%emt 0:00:22]} 7. Qd2 {[%emt 0:00:50]} Nc6 {[%emt 0:00:17]} 8. O-O-O {[%emt 0:00:14]} Nxd4 {[%emt 0:00:36]} 9. Qxd4 {[%emt 0:00:06]} Be6 {[%emt 0:00:28]} 10. f3 {[%emt 0:01:55]} a6 {[%emt 0:00:21]} 11. g4 {[%emt 0:00:28]} b5 {[%emt 0:00:06]} 12. h4 {[%emt 0:04:33]} c5 {[%emt 0:00:27]} 13. Qe3 {[%emt 0:01:58]} b4 {[%emt 0:02:52]} 14. Na4 {[%emt 0:00:33]} Qa5 {[%emt 0:00:32]} 15. b3 {[%emt 0:00:16]} Rfd8 {[%emt 0:01:43]} 16. g5 {[%emt 0:02:34]} Ne8 {[%emt 0:00:52]} 17. h5 {[%emt 0:08:12]} Rac8 {[%emt 0:01:25]} 18. Bh3 {[%emt 0:08:06]} c4 {[%emt 0:05:53]} 19. g6 {[%emt 0:06:00]} cxb3 {[%emt 0:08:05]} 20. axb3 {[%emt 0:01:41]} Rc3 {[%emt 0:06:15]} 21. Bxe6 {[%emt 0:15:23]} fxe6 {[%emt 0:02:10]} 22. Nxc3 {[%emt 0:04:52]} bxc3 {[%emt 0:00:22]} 23. Kb1 {[%emt 0:00:04]} Nc7 {[%emt 0:00:50]} 24. Rd4 {[%emt 0:09:02]} Rb8 {[%emt 0:02:07]} 25. gxh7+ {[%emt 0:15:20]} Kxh7 {[%emt 0:02:41]} 26. Qg1 {[%emt 0:00:41]} Bf6 {[%emt 0:00:50]} 27. Qg6+ {[%emt 0:02:26]} Kg8 {[%emt 0:01:06]} 28. e5 {[%emt 0:00:40]} dxe5 {[%emt 0:03:03]} 29. Rg1 {[%emt 0:06:49]} Qa3 {[%emt 0:01:17]} 30. Bc1 {[%emt 0:00:39]} Rxb3+ {[%emt 0:00:07]} 31. cxb3 {[%emt 0:00:04]} Qxb3+ {[%emt 0:00:06]} 32. Ka1 {[%emt 0:00:02]} exd4 {[%emt 0:00:19]} 33. Qxf6 {[%emt 0:00:11]} Qa4+ {[%emt 0:00:12]} 34. Kb1 {[%emt 0:00:01]} Qb3+ {[%emt 0:00:53]} 35. Ka1 {[%emt 0:00:03]} Qa4+ {[%emt 0:00:09]} 36. Kb1 {[%emt 0:00:02]} Qb3+ {[%emt 0:00:11]} 1/2-1/2

[Event "SixDays Budapest GM-A 09-2024"]
[Site "Budapest"]
[Date "2024.09.28"]
[Round "7.5"]
[White "Wachinger, Nikolas"]
[Black "Berczes, David"]
[Result "1/2-1/2"]
[ECO "C88"]
[WhiteElo "2442"]
[BlackElo "2400"]
[Annotator "ChessBase"]
[PlyCount "77"]
[EventDate "2024.09.24"]
[EventType "tourn"]
[EventCountry "HUN"]
[SourceTitle "playchess.com"]
[Source "ChessBase"]
[SourceQuality "1"]
[TimeControl "5400+30"]

1. e4 {[%emt 0:03:30]} e5 {[%emt 0:00:04]} 2. Nf3 {[%emt 0:00:27]} Nc6 {[%emt 0:00:03]} 3. Bb5 {[%emt 0:00:10]} a6 {[%emt 0:00:06]} 4. Ba4 {[%emt 0:00:07]} Nf6 {[%emt 0:00:05]} 5. O-O {[%emt 0:00:13]} Be7 {[%emt 0:00:02]} 6. Re1 {[%emt 0:00:09]} b5 {[%emt 0:00:06]} 7. Bb3 {[%emt 0:00:06]} O-O {[%emt 0:00:05]} 8. h3 {[%emt 0:00:58]} Bb7 {[%emt 0:00:55]} 9. d3 {[%emt 0:00:14]} d5 {[%emt 0:00:58]} 10. exd5 {[%emt 0:00:12]} Nxd5 {[%emt 0:00:06]} 11. Nbd2 {[%emt 0:00:25]} Nd4 {[%emt 0:00:23]} 12. Rxe5 {[%emt 0:05:07]} Nxb3 {[%emt 0:10:40]} 13. Nxb3 {[%emt 0:00:42]} Bd6 {[%emt 0:05:04]} 14. Re1 {[%emt 0:01:11]} c5 {[%emt 0:01:51]} 15. Bd2 {[%emt 0:18:10]} Rc8 {[%emt 0:01:59]} 16. a4 {[%emt 0:36:34]} b4 {[%emt 0:08:06]} 17. Bg5 {[%emt 0:03:00]} Qc7 {[%emt 0:01:40]} 18. Nbd2 {[%emt 0:01:58]} Bf4 {[%emt 0:02:22]} 19. Nc4 {[%emt 0:04:32]} f6 {[%emt 0:05:11]} 20. Bxf4 {[%emt 0:02:38]} Nxf4 {[%emt 0:00:04]} 21. Nh4 {[%emt 0:01:22]} Rce8 {[%emt 0:08:03]} 22. Re3 {[%emt 0:11:05]} g5 {[%emt 0:09:59]} 23. Nf3 {[%emt 0:01:41]} Rxe3 {[%emt 0:11:40]} 24. Nxe3 {[%emt 0:00:37]} Re8 {[%emt 0:01:04]} 25. h4 {[%emt 0:03:35]} g4 {[%emt 0:09:50]} 26. Nd2 {[%emt 0:00:31]} h5 {[%emt 0:07:20]} 27. Ne4 {[%emt 0:00:13]} Bxe4 {[%emt 0:08:49]} 28. dxe4 {[%emt 0:00:02]} Rxe4 {[%emt 0:00:12]} 29. Nd5 {[%emt 0:00:12]} Qe5 {[%emt 0:06:36]} 30. Nxf4 {[%emt 0:00:07]} Rxf4 {[%emt 0:00:08]} 31. Qd8+ {[%emt 0:00:43]} Kg7 {[%emt 0:00:27]} 32. Rd1 {[%emt 0:00:51]} Rd4 {[%emt 0:00:04]} 33. Rxd4 {[%emt 0:00:40]} Qe1+ {[%emt 0:01:16]} 34. Kh2 {[%emt 0:00:03]} Qe5+ {[%emt 0:00:03]} 35. g3 {[%emt 0:01:09]} Qxd4 {[%emt 0:01:10]} 36. Qe7+ {[%emt 0:04:07]} Kg6 {[%emt 0:00:20]} 37. Qe8+ {[%emt 0:00:10]} Kg7 {[%emt 0:00:27]} 38. Qe7+ {[%emt 0:00:14]} Kg6 {[%emt 0:00:04]} 39. Qe8+ {[%emt 0:00:05]} 1/2-1/2